fUSD/lending_fUSD_20250417
["ID","MTS","AMOUNT","RATE_DAILY","PERIOD"]
[358245212,1744876052131,-128.91014419,0.00034548,10]
[358245213,1744876052152,-502.0,0.00034603,2]
[358245214,1744876052173,-250.0,0.00036164,2]
[358245215,1744876052194,-162.0,0.00037,5]
[358245216,1744876052217,-29.6637779,0.00039973,2]
[358245217,1744876173111,-120.3362221,0.00039973,2]
[358245218,1744876173134,-200.0,0.0004,5]
[358245219,1744876173162,-160.4,0.000408,31]
[358245220,1744876173189,-160.4,0.000408,31]
[358245221,1744876173211,-150.0,0.00041,14]
[358245222,1744876191126,79.0460815,0.00032964,2]
[358245227,1744876232223,-71.9539185,0.00032964,2]
[358245228,1744876232233,-151.0,0.00032964,2]
[358245229,1744876232242,-150.0,0.00043151,90]
[358245230,1744876232254,-160.57,0.00043607,2]
[358245231,1744876232264,-190.177043,0.00045932,2]
[358245232,1744876232274,-508.01,0.00046163,2]
[358245233,1744876232283,-153.65,0.00046838,2]
[358245234,1744876232293,-1353.08,0.00046966,2]
[358245235,1744876232302,-242.2,0.00047535,2]
[358245236,1744876232312,-174.57,0.00047807,120]
[358245237,1744876232321,-153.82,0.00047807,120]
[358245238,1744876232332,-563.56,0.00047843,2]
[358245239,1744876232342,-239.43,0.0004787,120]
[358245240,1744876232351,-1000.0,0.00047888,2]
[358245241,1744876232360,-2000.0,0.000479,2]
[358245242,1744876232370,-250.0,0.00047967,120]
[358245243,1744876232380,-160.4,0.000481,45]
[358245244,1744876232393,-160.4,0.000481,45]
[358245245,1744876232402,-200.45,0.00048266,2]
[358245246,1744876232412,-350.0,0.00048409,5]
[358245247,1744876232421,-291.6432043,0.0004841,4]
[358245248,1744876232431,-508.01,0.00048427,2]
[358245249,1744876232440,-3335.65,0.00049,60]
[358245250,1744876232450,-435.48917787,0.00049205,15]
[358245251,1744876232459,-1558.95501597,0.00049205,15]
[358245252,1744876232468,-1187.78112222,0.00049214,21]
[358245253,1744876232477,-474.97054937,0.00049215,35]
[358245254,1744876232487,-403.53418936,0.00049215,25]
[358245255,1744876232497,-201.23719771,0.00049215,27]
[358245256,1744876232506,-2689.620629,0.00049285,2]
[358245257,1744876232515,-23321.37205912,0.00049295,4]
[358245402,1744876238371,-2825.62999826,0.00049295,4]
[358245403,1744876238383,-620.20110598,0.00049295,4]
[358245404,1744876238395,-479.90259264,0.00049295,4]
[358245405,1744876238464,-860.02272252,0.00049295,4]
[358245406,1744876238476,-670.19085,0.00049295,4]
[358245407,1744876238487,-1728.65,0.00049295,4]
[358245408,1744876238546,-761.39912051,0.00049295,4]
[358245459,1744876240207,-250.0,0.00032963,2]
[358245467,1744876240385,-30.85,0.00032963,2]
[358245468,1744876240396,-18174.45913747,0.00049295,4]
[358245469,1744876240406,-1074.44086253,0.00049295,4]
[358245470,1744876240452,-8057.08200005,0.00049295,4]
[358245471,1744876240508,-4000.0,0.00049295,4]
[358245472,1744876240753,-299.43584291,0.00049295,4]
[358245473,1744876240768,-282.53519438,0.00049295,4]
[358245474,1744876240781,-977.17320693,0.00049295,4]
[358245475,1744876240792,-1613.20843885,0.000493,30]
[358245476,1744876240803,-865.744,0.000493,86]
[358245478,1744876240814,-14690.6671068,0.00049304,4]
[358245480,1744876240824,-151.0,0.00049304,14]
[358245482,1744876240834,-151.0,0.00049304,14]
[358245484,1744876240844,-272.73586381,0.00049304,120]
[358245485,1744876240855,-497.37135481,0.00049304,120]
[358245487,1744876240865,-500.0,0.00049304,120]
[358245488,1744876240874,-500.0,0.00049304,120]
[358245489,1744876240884,-500.0,0.00049304,120]
[358245490,1744876240894,-197.15353965,0.00049304,120]
[358245491,1744876240904,-151.0,0.00049305,14]
[358245492,1744876240914,-151.0,0.00049305,14]
[358245493,1744876240924,-224.237001,0.00049305,14]
[358245494,1744876240935,-2091.4268482,0.00049305,2]
[358245495,1744876240945,-11296.5686033,0.00049305,2]
[358245496,1744876240955,-91561.3108482,0.00049305,2]
[358245497,1744876240966,-13274.4240983,0.00049305,2]
[358245498,1744876240976,-3303.0361807,0.00049305,2]
[358245499,1744876240986,-2271.956601,0.00049305,2]
[358245500,1744876240996,-132885.72896214,0.00049305,4]
[358245501,1744876241008,-345.18243109,0.00049305,4]
[358245506,1744876245125,-410.30174383,0.00049305,4]
[358245507,1744876245187,-1987.33276107,0.00049305,4]
[358245508,1744876246226,-12847.83824124,0.00049305,4]
[358245510,1744876246237,-1005.67666335,0.00049305,4]
[358245512,1744876246249,-278.75216773,0.00049305,4]
[358245514,1744876246261,-217505.86469955,0.00049305,4]
[358245515,1744876246271,-209.18966455,0.00049305,7]
[358245516,1744876246280,-312.94997787,0.00049314,30]
[358245517,1744876246290,-361.34972774,0.00049314,120]
[358245518,1744876246299,-151.0,0.00049314,2]
[358245519,1744876246309,-549.24834,0.00049314,86]
[358245520,1744876246319,-200.0,0.00049314,120]
[358245521,1744876246328,-207.4,0.00049314,120]
[358245522,1744876246338,-215.0738,0.00049314,120]
[358245523,1744876246348,-223.0315306,0.00049314,120]
[358245524,1744876246357,-231.28369723,0.00049314,120]
[358245525,1744876246367,-239.84119403,0.00049314,120]
[358245526,1744876246377,-248.71531821,0.00049314,120]
[358245527,1744876246386,-257.91778498,0.00049314,120]
[358245528,1744876246396,-267.46074303,0.00049314,120]
[358245529,1744876246406,-277.35679052,0.00049314,120]
[358245530,1744876246417,-287.61899177,0.00049314,120]
[358245531,1744876246427,-298.26089446,0.00049314,120]
[358245532,1744876246437,-309.29654756,0.00049314,120]
[358245533,1744876246447,-320.74051982,0.00049314,120]
[358245534,1744876246456,-332.60791905,0.00049314,120]
[358245535,1744876246466,-344.91441206,0.00049314,120]
[358245536,1744876246475,-357.6762453,0.00049314,120]
[358245537,1744876246485,-370.91026638,0.00049314,120]
[358245538,1744876246495,-384.63394623,0.00049314,120]
[358245539,1744876246505,-600.0,0.00049314,120]
[358245540,1744876246518,-151.0,0.00049314,120]
[358245541,1744876246528,-156.587,0.00049314,120]
[358245542,1744876246537,-161.357925,0.00049315,120]
[358245543,1744876246547,-163.636866,0.00049315,120]
[358245544,1744876246556,-158.097723,0.00049315,120]
[358245545,1744876246566,-207.332943,0.00049315,120]
[358245546,1744876246576,-171.41279,0.00049315,120]
[358245547,1744876246585,-591.156374,0.00049315,120]
[358245548,1744876246595,-168.462312,0.00049315,120]
[358245549,1744876246604,-156.987081,0.00049315,120]
[358245550,1744876246614,-199.642189,0.00049315,120]
[358245551,1744876246624,-500.0,0.00049315,120]
[358245552,1744876246634,-500.0,0.00049315,120]
[358245553,1744876246643,-227.981738,0.00049315,120]
[358245554,1744876246652,-151.0,0.00049315,14]
[358245555,1744876246662,-254.26382086,0.00049315,16]
[358245556,1744876246671,-500.0,0.00049315,120]
[358245557,1744876246680,-151.0,0.00049315,14]
[358245558,1744876246691,-150.0,0.00049315,5]
[358245560,1744876246700,-1611.74,0.00049315,120]
[358245562,1744876246710,-501.47167339,0.00049315,5]
[358245564,1744876246722,-503.36742057,0.00049315,120]
[358245566,1744876246731,-500.0,0.00049315,120]
[358245568,1744876246741,-502.4435849,0.00049315,120]
[358245569,1744876246751,-500.0,0.00049315,120]
[358245570,1744876246760,-772.09,0.00049315,120]
[358245571,1744876246769,-405.07702448,0.00049315,120]
[358245572,1744876246779,-3077.05,0.00049315,120]
[358245573,1744876246790,-500.0,0.00049315,120]
[358245574,1744876246799,-510.73057018,0.00049315,120]
[358245575,1744876246808,-500.0,0.00049315,120]
[358245576,1744876246818,-614.13120668,0.00049315,120]
[358245577,1744876246828,-500.0,0.00049315,120]
[358245578,1744876246837,-516.0,0.00049315,120]
[358245579,1744876246847,-246.21208624,0.00049315,60]
[358245580,1744876246856,-825.74,0.00049315,120]
[358245581,1744876246866,-500.0,0.00049315,120]
[358245582,1744876246875,-500.0,0.00049315,120]
[358245583,1744876246885,-616.96221061,0.00049315,120]
[358245584,1744876246894,-500.0,0.00049315,120]
[358245585,1744876246904,-500.0,0.00049315,120]
[358245586,1744876246913,-500.0,0.00049315,120]
[358245587,1744876246923,-500.0,0.00049315,120]
[358245588,1744876246933,-1329.86,0.00049315,120]
[358245589,1744876246942,-500.0,0.00049315,120]
[358245590,1744876246952,-1041.46,0.00049315,120]
[358245591,1744876246962,-500.0,0.00049315,120]
[358245592,1744876246971,-200.0,0.00049315,7]
[358245593,1744876246979,-151.0,0.00049315,14]
[358245594,1744876246987,-284.38389802,0.00049315,14]
[358245595,1744876246995,-201.80054994,0.00049315,14]
[358245596,1744876247005,-500.0,0.00049315,120]
[358245597,1744876247015,-995.71,0.00049315,120]
[358245598,1744876247024,-500.0,0.00049315,120]
[358245599,1744876247034,-500.0,0.00049315,120]
[358245600,1744876247044,-151.0,0.00049315,14]
[358245601,1744876247054,-500.0,0.00049315,120]
[358245602,1744876247063,-561.46,0.00049315,30]
[358245603,1744876247073,-505.54501509,0.00049315,120]
[358245604,1744876247082,-500.0,0.00049315,120]
[358245605,1744876247096,-586.65839313,0.00049315,120]
[358245606,1744876247107,-504.52010485,0.00049315,120]
[358245607,1744876247117,-500.0,0.00049315,120]
[358245608,1744876247129,-500.0,0.00049315,120]
[358245609,1744876247139,-1000.0,0.00049315,2]
[358245610,1744876247149,-1000.0,0.00049315,2]
[358245611,1744876247159,-1000.0,0.00049315,2]
[358245612,1744876247170,-1000.0,0.00049315,2]
[358245613,1744876247181,-1000.0,0.00049315,2]
[358245614,1744876247191,-1000.0,0.00049315,2]
[358245615,1744876247200,-500.0,0.00049315,120]
[358245616,1744876247210,-1000.0,0.00049315,2]
[358245617,1744876247219,-1000.0,0.00049315,2]
[358245618,1744876247229,-1000.0,0.00049315,2]
[358245619,1744876247239,-606.61300277,0.00049315,2]
[358245620,1744876247248,-500.0,0.00049315,120]
[358245621,1744876247257,-889.17,0.00049315,120]
[358245622,1744876247266,-500.0,0.00049315,120]
[358245623,1744876247275,-500.0,0.00049315,120]
[358245624,1744876247285,-500.0,0.00049315,120]
[358245625,1744876247294,-500.0,0.00049315,120]
[358245626,1744876247304,-1598.19,0.00049315,120]
[358245627,1744876247314,-505.43402451,0.00049315,120]
[358245628,1744876247324,-500.0,0.00049315,120]
[358245629,1744876247335,-484.36853179,0.00049315,120]
[358245630,1744876247345,-500.0,0.00049315,120]
[358245631,1744876247354,-210.57090834,0.00049315,120]
[358245632,1744876247364,-2447.13,0.00049315,120]
[358245633,1744876247374,-934.81,0.00049315,120]
[358245634,1744876247383,-500.0,0.00049315,120]
[358245635,1744876247392,-500.0,0.00049315,120]
[358245636,1744876247401,-558.88,0.00049315,120]
[358245637,1744876247411,-500.0,0.00049315,120]
[358245638,1744876247420,-504.97311187,0.00049315,120]
[358245639,1744876247429,-500.0,0.00049315,120]
[358245640,1744876247439,-500.0,0.00049315,120]
[358245641,1744876247448,-507.41659481,0.00049315,120]
[358245642,1744876247458,-500.0,0.00049315,120]
[358245643,1744876247468,-503.51938589,0.00049315,120]
[358245644,1744876247477,-500.0,0.00049315,120]
[358245645,1744876247487,-500.0,0.00049315,120]
[358245646,1744876247496,-500.0,0.00049315,120]
[358245647,1744876247506,-500.0,0.00049315,120]
[358245648,1744876247516,-500.0,0.00049315,120]
[358245649,1744876247525,-500.0,0.00049315,120]
[358245650,1744876247534,-365.90128844,0.00049315,120]
[358245651,1744876247544,-120995.21,0.00049315,7]
[358245652,1744876247555,-500.0,0.00049315,120]
[358245653,1744876247566,-153.630712,0.00049315,14]
[358245654,1744876247576,-1597.3,0.00049315,120]
[358245655,1744876247585,-500.0,0.00049315,120]
[358245656,1744876247595,-554.77086873,0.00049315,120]
[358245657,1744876247605,-500.0,0.00049315,120]
[358245658,1744876247614,-724.18,0.00049315,2]
[358245659,1744876247624,-510.59862649,0.00049315,120]
[358245660,1744876247633,-500.0,0.00049315,120]
[358245661,1744876247643,-500.0,0.00049315,120]
[358245662,1744876247653,-1073.23,0.00049315,120]
[358245663,1744876247663,-500.0,0.00049315,120]
[358245664,1744876247672,-852.63,0.00049315,120]
[358245665,1744876247682,-500.0,0.00049315,120]
[358245666,1744876247691,-500.0,0.00049315,120]
[358245667,1744876247701,-9618.82,0.00049315,2]
[358245668,1744876247711,-151.0,0.00049315,14]
[358245669,1744876247720,-500.0,0.00049315,120]
[358245670,1744876247730,-151.0,0.00049315,14]
[358245671,1744876247740,-151.0,0.00049315,14]
[358245672,1744876247749,-500.0,0.00049315,120]
[358245673,1744876247759,-151.0,0.00049315,14]
[358245674,1744876247768,-557.51690141,0.00049315,120]
[358245675,1744876247777,-500.0,0.00049315,120]
[358245676,1744876247787,-500.0,0.00049315,120]
[358245677,1744876247798,-500.0,0.00049315,120]
[358245678,1744876247807,-748.68,0.00049315,120]
[358245679,1744876247816,-500.0,0.00049315,120]
[358245680,1744876247826,-507.6,0.00049315,120]
[358245681,1744876247835,-500.0,0.00049315,120]
[358245682,1744876247845,-500.0,0.00049315,120]
[358245683,1744876247854,-500.0,0.00049315,120]
[358245684,1744876247864,-500.0,0.00049315,120]
[358245685,1744876247874,-500.0,0.00049315,120]
[358245686,1744876247883,-500.0,0.00049315,120]
[358245687,1744876247893,-486.89264024,0.00049315,120]
[358245688,1744876247902,-500.0,0.00049315,120]
[358245689,1744876247912,-4167.06,0.00049315,120]
[358245690,1744876247921,-547.49,0.00049315,120]
[358245691,1744876247931,-762.47,0.00049315,120]
[358245692,1744876247940,-573.39506616,0.00049315,120]
[358245693,1744876247950,-500.0,0.00049315,120]
[358245694,1744876247959,-1761.11,0.00049315,120]
[358245695,1744876247972,-500.0,0.00049315,120]
[358245696,1744876247985,-500.0,0.00049315,120]
[358245697,1744876247998,-500.0,0.00049315,120]
[358245698,1744876248010,-603.07,0.00049315,120]
[358245699,1744876248022,-677.96,0.00049315,120]
[358245700,1744876248032,-895.97,0.00049315,120]
[358245701,1744876248044,-2042.51,0.00049315,120]
[358245702,1744876248056,-2095.32,0.00049315,120]
[358245703,1744876248068,-500.0,0.00049315,120]
[358245704,1744876248081,-500.0,0.00049315,120]
[358245705,1744876248097,-783.72,0.00049315,120]
[358245706,1744876248111,-568.82,0.00049315,120]
[358245707,1744876248123,-670.78,0.00049315,120]
[358245708,1744876248135,-151.0,0.00049315,14]
[358245709,1744876248146,-1727.55,0.00049315,120]
[358245710,1744876248157,-500.0,0.00049315,120]
[358245711,1744876248168,-198.656338,0.00049315,14]
[358245712,1744876248181,-500.0,0.00049315,120]
[358245713,1744876248193,-151.0,0.00049315,14]
[358245714,1744876248205,-185.339047,0.00049315,14]
[358245715,1744876248217,-198.656338,0.00049315,14]
[358245716,1744876248230,-500.0,0.00049315,120]
[358245717,1744876248241,-151.0,0.00049315,14]
[358245718,1744876248252,-185.339047,0.00049315,14]
[358245719,1744876248265,-1214.17,0.00049315,120]
[358245720,1744876248276,-185.339047,0.00049315,14]
[358245721,1744876248288,-185.339047,0.00049315,14]
[358245722,1744876248300,-322.416,0.00049315,14]
[358245723,1744876248312,-322.416,0.00049315,14]
[358245724,1744876248324,-151.0,0.00049315,14]
[358245725,1744876248335,-322.416,0.00049315,14]
[358245726,1744876248347,-322.416,0.00049315,14]
[358245727,1744876248358,-500.0,0.00049315,120]
[358245728,1744876248370,-500.0,0.00049315,120]
[358245729,1744876248382,-500.0,0.00049315,120]
[358245730,1744876248395,-500.0,0.00049315,120]
[358245731,1744876248408,-151.0,0.00049315,14]
[358245732,1744876248420,-500.0,0.00049315,120]
[358245733,1744876248431,-151.0,0.00049315,14]
[358245734,1744876248443,-500.0,0.00049315,120]
[358245735,1744876248454,-500.0,0.00049315,120]
[358245736,1744876248465,-563.29,0.00049315,120]
[358245737,1744876248476,-151.0,0.00049315,14]
[358245738,1744876248487,-765.17,0.00049315,120]
[358245739,1744876248500,-781.9,0.00049315,120]
[358245740,1744876248514,-500.0,0.00049315,120]
[358245741,1744876248527,-2735.7,0.00049315,120]
[358245742,1744876248537,-2102.94,0.00049315,120]
[358245743,1744876248548,-1420.11,0.00049315,120]
[358245744,1744876248558,-500.0,0.00049315,120]
[358245745,1744876248569,-500.0,0.00049315,120]
[358245746,1744876248580,-282.22513484,0.00049315,120]
[358245747,1744876248593,-541.28,0.00049315,120]
[358245748,1744876248605,-500.0,0.00049315,120]
[358245749,1744876248617,-500.0,0.00049315,120]
[358245750,1744876248629,-500.0,0.00049315,2]
[358245751,1744876248640,-500.0,0.00049315,120]
[358245752,1744876248651,-524.96,0.00049315,120]
[358245753,1744876248662,-500.0,0.00049315,120]
[358245754,1744876248672,-500.0,0.00049315,120]
[358245755,1744876248683,-500.0,0.00049315,120]
[358245756,1744876248695,-776.69,0.00049315,120]
[358245757,1744876248706,-1055.54,0.00049315,120]
[358245758,1744876248718,-296.42644172,0.00049315,120]
[358245759,1744876248729,-500.0,0.00049315,120]
[358245760,1744876248741,-1489.79,0.00049315,120]
[358245761,1744876248752,-1656.3,0.00049315,120]
[358245762,1744876248765,-1158.21,0.00049315,35]
[358245763,1744876248776,-500.0,0.00049315,120]
[358245764,1744876248787,-512.7784685,0.00049315,30]
[358245765,1744876248802,-500.0,0.00049315,120]
[358245766,1744876248813,-500.0,0.00049315,120]
[358245767,1744876248825,-1223.23,0.00049315,120]
[358245768,1744876248836,-1296.94,0.00049315,120]
[358245769,1744876248847,-606.92,0.00049315,120]
[358245770,1744876248858,-500.0,0.00049315,120]
[358245771,1744876248870,-500.0,0.00049315,120]
[358245772,1744876248881,-153.032533,0.00049315,14]
[358245773,1744876248892,-1176.7,0.00049315,120]
[358245774,1744876248902,-1628.14,0.00049315,120]
[358245775,1744876248914,-1112.64,0.00049315,120]
[358245776,1744876248925,-151.0,0.00049315,14]
[358245777,1744876248936,-500.0,0.00049315,120]
[358245778,1744876248948,-500.0,0.00049315,120]
[358245779,1744876248958,-2221.31,0.00049315,120]
[358245780,1744876248969,-500.0,0.00049315,120]
[358245781,1744876248979,-500.0,0.00049315,120]
[358245782,1744876248990,-500.0,0.00049315,120]
[358245783,1744876249001,-500.0,0.00049315,120]
[358245784,1744876249012,-530.74,0.00049315,120]
[358245785,1744876249023,-862.16,0.00049315,120]
[358245786,1744876249034,-1379.41,0.00049315,120]
[358245787,1744876249045,-500.0,0.00049315,120]
[358245788,1744876249056,-507.47,0.00049315,120]
[358245789,1744876249067,-500.0,0.00049315,120]
[358245790,1744876249078,-997.54,0.00049315,120]
[358245791,1744876249089,-500.0,0.00049315,120]
[358245792,1744876249105,-329.85990675,0.00049315,120]
[358245793,1744876249120,-1247.38,0.00049315,120]
[358245794,1744876249131,-500.0,0.00049315,120]
[358245795,1744876249143,-500.0,0.00049315,120]
[358245796,1744876249155,-500.0,0.00049315,120]
[358245797,1744876249167,-500.0,0.00049315,120]
[358245798,1744876249179,-572.9632454,0.00049315,120]
[358245799,1744876249190,-519.16,0.00049315,120]
[358245800,1744876249203,-730.71,0.00049315,120]
[358245801,1744876249214,-946.46,0.00049315,120]
[358245802,1744876249225,-500.0,0.00049315,120]
[358245803,1744876249236,-490.299328,0.00049315,14]
[358245804,1744876249247,-386.018216,0.00049315,14]
[358245805,1744876249259,-500.0,0.00049315,120]
[358245806,1744876249270,-1007.48,0.00049315,120]
[358245807,1744876249281,-490.299328,0.00049315,14]
[358245808,1744876249293,-559.91,0.00049315,120]
[358245809,1744876249304,-620.67811355,0.00049315,120]
[358245810,1744876249315,-151.954972,0.00049315,14]
[358245811,1744876249327,-500.0,0.00049315,120]
[358245812,1744876249340,-1373.68,0.00049315,120]
[358245813,1744876249351,-500.0,0.00049315,120]
[358245814,1744876249362,-500.0,0.00049315,30]
[358245815,1744876249373,-940.05,0.00049315,120]
[358245816,1744876249385,-500.0,0.00049315,120]
[358245817,1744876249396,-1470.933859,0.00049315,14]
[358245818,1744876249407,-500.0,0.00049315,120]
[358245819,1744876249418,-500.0,0.00049315,120]
[358245820,1744876249429,-1203.26,0.00049315,120]
[358245821,1744876249440,-1470.933859,0.00049315,14]
[358245822,1744876249451,-825.67,0.00049315,120]
[358245823,1744876249463,-1575.92,0.00049315,120]
[358245824,1744876249474,-500.0,0.00049315,120]
[358245825,1744876249487,-500.0,0.00049315,120]
[358245826,1744876249498,-500.0,0.00049315,120]
[358245827,1744876249510,-1004.58,0.00049315,120]
[358245828,1744876249521,-500.0,0.00049315,120]
[358245829,1744876249532,-1167.01,0.00049315,120]
[358245830,1744876249543,-500.0,0.00049315,120]
[358245831,1744876249554,-151.0,0.00049315,14]
[358245832,1744876249565,-701.01,0.00049315,120]
[358245833,1744876249576,-1323.83,0.00049315,120]
[358245834,1744876249587,-500.0,0.00049315,120]
[358245835,1744876249598,-151.0,0.00049315,14]
[358245836,1744876249610,-803.28,0.00049315,30]
[358245837,1744876249621,-507.89,0.00049315,120]
[358245838,1744876249632,-1748.54,0.00049315,120]
[358245839,1744876249643,-169.4081,0.00049315,14]
[358245840,1744876249654,-3514.34,0.00049315,120]
[358245841,1744876249665,-500.0,0.00049315,120]
[358245842,1744876249676,-500.0,0.00049315,120]
[358245843,1744876249687,-151.0,0.00049315,14]
[358245844,1744876249699,-626.45376071,0.00049315,120]
[358245845,1744876249710,-500.0,0.00049315,120]
[358245846,1744876249721,-500.0,0.00049315,120]
[358245847,1744876249732,-1749.19,0.00049315,120]
[358245848,1744876249743,-620.84408845,0.00049315,120]
[358245849,1744876249754,-500.0,0.00049315,120]
[358245850,1744876249765,-500.0,0.00049315,120]
[358245851,1744876249776,-500.0,0.00049315,120]
[358245852,1744876249788,-1134.15,0.00049315,120]
[358245853,1744876249799,-1115.45,0.00049315,120]
[358245854,1744876249810,-500.0,0.00049315,120]
[358245855,1744876249821,-1157.9,0.00049315,120]
[358245856,1744876249832,-1269.95,0.00049315,120]
[358245857,1744876249844,-155.254723,0.00049315,14]
[358245858,1744876249854,-557.7146344,0.00049315,120]
[358245859,1744876249866,-500.0,0.00049315,120]
[358245860,1744876249877,-1020.0,0.00049315,120]
[358245861,1744876249888,-500.0,0.00049315,120]
[358245862,1744876249899,-500.0,0.00049315,120]
[358245863,1744876249911,-151.0,0.00049315,14]
[358245864,1744876249922,-500.0,0.00049315,120]
[358245865,1744876249933,-2000.0,0.00049315,120]
[358245866,1744876249944,-500.0,0.00049315,120]
[358245867,1744876249954,-2000.0,0.00049315,120]
[358245868,1744876249965,-2000.0,0.00049315,120]
[358245869,1744876249976,-2000.0,0.00049315,120]
[358245870,1744876249987,-1129.1,0.00049315,120]
[358245871,1744876249998,-1025.10146752,0.00049315,120]
[358245872,1744876250010,-1581.24,0.00049315,120]
[358245873,1744876250021,-568.86,0.00049315,120]
[358245874,1744876250032,-766.52,0.00049315,120]
[358245875,1744876250043,-500.0,0.00049315,120]
[358245876,1744876250054,-500.0,0.00049315,120]
[358245877,1744876250065,-500.0,0.00049315,120]
[358245878,1744876250076,-683.59,0.00049315,120]
[358245879,1744876250087,-500.0,0.00049315,120]
[358245880,1744876250102,-605.07,0.00049315,120]
[358245881,1744876250113,-500.0,0.00049315,120]
[358245882,1744876250124,-512.80684232,0.00049315,120]
[358245883,1744876250135,-500.0,0.00049315,120]
[358245884,1744876250146,-1943.48,0.00049315,120]
[358245885,1744876250156,-500.0,0.00049315,120]
[358245886,1744876250169,-945.69,0.00049315,120]
[358245887,1744876250180,-500.0,0.00049315,120]
[358245888,1744876250191,-546.74114975,0.00049315,120]
[358245889,1744876250203,-227.069273,0.00049315,14]
[358245890,1744876250214,-1873.76,0.00049315,120]
[358245891,1744876250225,-500.0,0.00049315,120]
[358245892,1744876250236,-500.0,0.00049315,120]
[358245893,1744876250247,-227.069273,0.00049315,14]
[358245894,1744876250258,-500.0,0.00049315,120]
[358245895,1744876250268,-500.0,0.00049315,120]
[358245896,1744876250280,-566.9,0.00049315,120]
[358245897,1744876250291,-153.791516,0.00049315,14]
[358245898,1744876250303,-500.0,0.00049315,120]
[358245899,1744876250315,-500.0,0.00049315,120]
[358245900,1744876250327,-536.75,0.00049315,120]
[358245901,1744876250339,-500.0,0.00049315,120]
[358245902,1744876250350,-151.0,0.00049315,14]
[358245903,1744876250361,-500.0,0.00049315,120]
[358245904,1744876250372,-500.0,0.00049315,120]
[358245905,1744876250383,-500.0,0.00049315,120]
[358245906,1744876250394,-500.0,0.00049315,30]
[358245907,1744876250406,-1511.21,0.00049315,120]
[358245908,1744876250417,-2015.84,0.00049315,120]
[358245909,1744876250427,-500.0,0.00049315,120]
[358245910,1744876250438,-500.0,0.00049315,120]
[358245911,1744876250449,-500.0,0.00049315,120]
[358245912,1744876250460,-500.0,0.00049315,120]
[358245913,1744876250470,-500.0,0.00049315,120]
[358245914,1744876250481,-500.0,0.00049315,120]
[358245915,1744876250491,-500.0,0.00049315,120]
[358245916,1744876250502,-500.0,0.00049315,120]
[358245917,1744876250513,-500.0,0.00049315,120]
[358245918,1744876250524,-500.0,0.00049315,120]
[358245919,1744876250535,-500.0,0.00049315,120]
[358245920,1744876250546,-500.0,0.00049315,120]
[358245921,1744876250557,-500.0,0.00049315,120]
[358245922,1744876250568,-576.1,0.00049315,120]
[358245923,1744876250578,-500.0,0.00049315,120]
[358245924,1744876250589,-151.0,0.00049315,14]
[358245925,1744876250600,-503.02,0.00049315,120]
[358245926,1744876250611,-1485.3,0.00049315,120]
[358245927,1744876250621,-500.0,0.00049315,120]
[358245928,1744876250632,-616.82,0.00049315,120]
[358245929,1744876250643,-1889.42,0.00049315,120]
[358245930,1744876250653,-500.0,0.00049315,120]
[358245931,1744876250665,-521.54,0.00049315,120]
[358245932,1744876250676,-500.0,0.00049315,120]
[358245933,1744876250686,-151.0,0.00049315,14]